[Event "CCT Airthings Masters Play-In 2023"]
[Site "Online"]
[Date "2023.02.03"]
[Round "1"]
[White "Iskusnyh, Sergei"]
[Black "AlexanderL"]
[Result "*"]
[ECO "A40"]
[WhiteElo "2443"]
[BlackElo "2602"]
[Annotator "TA"]
[PlyCount "38"]
[EventDate "2023.02.03"]
[EventType "swiss"]
[EventCountry "NET"]
[SourceTitle "playchess.com"]
[Source "ChessBase"]
[SourceQuality "1"]
[TimeControl "600+2"]

{[%evp 12,38,33,31,21,13,26,15,28,18,18,18,8,16,21,0,11,0,0,0,25,2,5,11,86,84,104,105,106]} 1. d4 {[%emt 0:00:07]} e6 {[%emt 0:00:04]} 2. c4 {[%emt 0:00:02]} b6 {[%emt 0:00:01]} 3. Nf3 {[%emt 0:00:24]} Bb7 {[%emt 0:00:02]} 4. g3 {[%emt 0:00:01]} Bb4+ {[%emt 0:00:02]} 5. Bd2 {[%emt 0:00:14]} Bxf3 {[%emt 0:00:01]} 6. exf3 {[%emt 0:00:03]} Bxd2+ {[%emt 0:00:02]} 7. Qxd2 {[%emt 0:00:02]} ({Don't play} 7. Kxd2 Nc6 8. d5 Nd4 $15) 7... Nf6 {[%emt 0:00:06] A40: Unusual replies to 1 d4.} 8. Nc3 {[%emt 0:00:03]} O-O {[%emt 0:00:03]} 9. Bg2 {[%emt 0:00:39]} d5 {[%emt 0:00:04] The position is equal.} 10. cxd5 {[%emt 0:00:06]} Nxd5 {[%emt 0:00:01]} 11. f4 {[%emt 0:00:16][%cal Of4f5]} c6 {[%emt 0:00:30]} 12. O-O {[%emt 0:00:09]} Ne7 {[%emt 0:00:08]} 13. b4 {[%emt 0:00:50] [#]} Nd7 $146 {[%emt 0:00:19]} ({Predecessor:} 13... a6 14. Rfd1 Ra7 15. Ne2 a5 16. bxa5 Rxa5 17. a4 Qc7 18. Qb2 Nd7 19. Ra3 Rfa8 {0-1 Belunek,V (2376)-Kubala,M (2353) Pobeskydy Sme 14th 2003 (5)}) 14. b5 {[%emt 0:00:11]} Rc8 {[%emt 0:00:02]} 15. bxc6 {[%emt 0:00:12]} Nxc6 {[%emt 0:00:00]} 16. d5 {[%emt 0:01:01]} Nf6 {[%emt 0:00:03]} 17. Rfd1 {[%emt 0:00:03]} Na5 {[%emt 0:00:21]} (17... Ne7 $11) 18. Rac1 $16 {[%emt 0:00:21]} exd5 {[%emt 0:00:30]} 19. Nxd5 {[%emt 0:00:20]} Nxd5 {[%emt 0:00:05] Weighted Error Value: White=0.07 (flawless) /Black=0.19 (very precise)} *

[Event "CCT Airthings Masters Play-In 2023"]
[Site "Online"]
[Date "2023.02.03"]
[Round "1"]
[White "Anonymous"]
[Black "NikoTheodorou"]
[Result "*"]
[ECO "B33"]
[WhiteElo "2437"]
[BlackElo "2612"]
[Annotator "TA"]
[PlyCount "42"]
[EventDate "2023.02.03"]
[EventType "swiss"]
[EventCountry "NET"]
[SourceTitle "playchess.com"]
[Source "ChessBase"]
[SourceQuality "1"]
[TimeControl "600+2"]

{[%evp 15,42,0,10,-14,-11,-4,-4,4,23,-25,-12,-43,-27,-38,-42,-91,-93,-99,-40,0,0,-33,-20,-47,9,9,16,-133,-110]} 1. e4 {[%emt 0:00:03]} c5 {[%emt 0:00:09]} 2. Nf3 {[%emt 0:00:02][%cal Bg1f3,Bf3d4,Bd4b5][%mdl 32]} Nc6 {[%emt 0:00:01]} 3. d4 {[%emt 0:00:01]} cxd4 {[%emt 0:00:01]} 4. Nxd4 {[%emt 0:00:00]} Nf6 {[%emt 0:00:01]} 5. Nc3 {[%emt 0:00:01]} e5 {[%emt 0:00:04]} 6. Ndb5 {[%emt 0:00:02]} d6 {[%emt 0:00:01]} 7. Nd5 {[%emt 0:00:01]} Nxd5 {[%emt 0:00:02]} 8. exd5 {[%emt 0:00:00]} Nb8 {[%emt 0:00:01][%cal Bc6b8,Bb8a6,Ba6b4][%mdl 32]} 9. b4 {[%emt 0:00:05] B33: Sicilian: Pelikan and Sveshnikov Variations.} Be7 {[%emt 0:00:05]} 10. a4 {[%emt 0:00:05]} O-O {[%emt 0:00:03]} 11. a5 {[%emt 0:00:02] [#] The position is equal.} f5 $146 {[%emt 0:00:24]} ({Predecessor:} 11... Nd7 12. Be2 f5 13. O-O a6 14. Na3 e4 15. Nc4 Ne5 16. Nb6 Rb8 17. f4 exf3 18. Bxf3 {1-0 Arjun,K (2505)-Lim,Z (2305) Sitges Sunway op 9th 2022 (3)}) 12. Be3 {[%emt 0:00:23]} (12. Be2 $142) 12... Na6 {[%emt 0:00:58]} 13. Bxa7 {[%emt 0:00:32]} Nxb4 {[%emt 0:00:14]} 14. c3 {[%emt 0:00:47]} Na6 {[%emt 0:00:02]} 15. Bb6 {[%emt 0:00:06]} (15. Be2 $15) 15... Qe8 $17 {[%emt 0:00:01]} 16. Be2 {[%emt 0:00:06]} Qg6 {[%emt 0:00:18]} (16... f4 $17) 17. O-O $15 {[%emt 0:00:10]} f4 {[%emt 0:00:00] [#] aiming for ...Bh3.} 18. Kh1 {[%emt 0:00:19]} (18. Bd3 $5 {[%cal Rd3g6]} Bf5 19. Bxf5 Rxf5 20. f3 $11) 18... Bf5 {[%emt 0:00:08]} 19. f3 {[%emt 0:00:11]} Qh5 {[%emt 0:00:31]} ({Black should try} 19... Bh4 $15) 20. Bd3 $11 {[%emt 0:00:18]} Bd7 {[%emt 0:00:01]} 21. c4 {[%emt 0:00:18] [#]} (21. Rf2 $11 {keeps the balance.}) 21... Rf6 $1 {[%emt 0:00:02] Weighted Error Value: White=0.34/Black=0.15 (very precise)} *

[Event "CCT Airthings Masters Play-In 2023"]
[Site "Online"]
[Date "2023.02.03"]
[Round "1"]
[White "BrandonJacobson"]
[Black "LastGladiator1"]
[Result "*"]
[ECO "A17"]
[WhiteElo "2392"]
[BlackElo "2601"]
[Annotator "TA"]
[PlyCount "36"]
[EventDate "2023.02.03"]
[EventType "swiss"]
[EventCountry "NET"]
[SourceTitle "playchess.com"]
[Source "ChessBase"]
[SourceQuality "1"]
[TimeControl "600+2"]

{[%evp 9,36,16,25,13,17,9,16,28,9,0,0,13,4,7,2,0,21,5,11,0,0,0,0,0,0,0,0,0,0]} 1. Nf3 {[%emt 0:00:09]} d5 {[%emt 0:00:06]} 2. e3 {[%emt 0:00:01]} Nf6 {[%emt 0:00:02]} 3. c4 {[%emt 0:00:01]} e6 {[%emt 0:00:05]} 4. Nc3 {[%emt 0:00:01]} a6 {[%emt 0:00:24]} 5. b3 {[%emt 0:00:08]} c5 {[%emt 0:00:15]} 6. Bb2 {[%emt 0:00:14] A17: English Opening: 1...Nf6 with ...Bb4.} Nc6 {[%emt 0:00:04]} 7. cxd5 {[%emt 0:00:01]} exd5 {[%emt 0:00:06]} 8. d4 {[%emt 0:00:00]} Bg4 {[%emt 0:00:27] The main line 8...Bg4 scores better than 8...cxd4.} 9. Be2 {[%emt 0:00:52] The position is equal.} Bxf3 {[%emt 0:00:03]} 10. Bxf3 {[%emt 0:00:00] With the idea dxc5.} cxd4 {[%emt 0:00:01]} 11. exd4 {[%emt 0:00:00]} Bb4 {[%emt 0:00:09]} 12. O-O {[%emt 0:00:02]} O-O {[%emt 0:00:01]} 13. Qd3 {[%emt 0:00:11]} Re8 {[%emt 0:00:09]} 14. Rfe1 {[%emt 0:00:46]} Qd6 {[%emt 0:01:24]} 15. g3 {[%emt 0:00:09] [#]} Rad8 $146 {[%emt 0:00:16]} ({Predecessor:} 15... h5 16. h4 Rad8 17. Rad1 b5 18. Kg2 Re6 19. Rxe6 Qxe6 20. a4 Bxc3 21. Bxc3 Rb8 22. axb5 Rxb5 {1-0 Isik,A (2328)-Kotronias,V (2492) Ayvalik Petro Gp-A 2022 (1)}) 16. Rxe8+ {[%emt 0:00:37]} Rxe8 {[%emt 0:00:00]} 17. a3 {[%emt 0:00:00]} Bxc3 {[%emt 0:00:03]} 18. Bxc3 {[%emt 0:00:03]} Ne4 {[%emt 0:00:01] A rather calm draw.   Weighted Error Value: White=0.03 (flawless) /Black=0.04 (flawless)} *

[Event "CCT Airthings Masters Play-In 2023"]
[Site "Online"]
[Date "2023.02.03"]
[Round "1"]
[White "Fighterman91"]
[Black "Infernal_XaM"]
[Result "*"]
[ECO "D02"]
[WhiteElo "2374"]
[BlackElo "2595"]
[Annotator "NA"]
[PlyCount "36"]
[EventDate "2023.02.03"]
[EventType "swiss"]
[EventCountry "NET"]
[SourceTitle "playchess.com"]
[Source "ChessBase"]
[SourceQuality "1"]
[TimeControl "600+2"]

1. d4 {[%emt 0:01:34]} Nf6 {[%emt 0:00:04]} 2. Bf4 {[%emt 0:00:04]} c5 {[%emt 0:00:02]} 3. e3 {[%emt 0:00:01]} e6 {[%emt 0:00:14]} 4. c3 {[%emt 0:00:12]} Qb6 {[%emt 0:00:04]} 5. Qb3 {[%emt 0:00:06]} Nc6 {[%emt 0:00:02]} 6. Nd2 {[%emt 0:00:03]} d5 {[%emt 0:00:05]} 7. Ngf3 {[%emt 0:00:12]} Be7 {[%emt 0:00:30]} 8. Be2 {[%emt 0:00:14]} c4 {[%emt 0:00:04]} 9. Qxb6 {[%emt 0:00:08]} axb6 {[%emt 0:00:02]} 10. a3 {[%emt 0:00:06]} b5 {[%emt 0:00:02]} 11. Rc1 {[%emt 0:00:02]} Nd7 {[%emt 0:00:21]} 12. e4 {[%emt 0:01:02]} Nb6 {[%emt 0:00:03]} 13. Bd1 {[%emt 0:00:03]} f6 {[%emt 0:00:01]} 14. O-O {[%emt 0:00:05]} g5 {[%emt 0:00:02]} 15. Be3 {[%emt 0:00:19]} Kf7 {[%emt 0:00:06]} 16. Bc2 {[%emt 0:00:06]} Bd7 {[%emt 0:00:04]} 17. h3 {[%emt 0:00:31]} h5 {[%emt 0:00:02]} 18. g3 {[%emt 0:00:29]} Rhg8 {[%emt 0:00:15]} *

[Event "CCT Airthings Masters Play-In 2023"]
[Site "Online"]
[Date "2023.02.03"]
[Round "1"]
[White "kpio91"]
[Black "kirillshevchenko"]
[Result "*"]
[ECO "B30"]
[WhiteElo "2346"]
[BlackElo "2589"]
[Annotator "NA"]
[PlyCount "29"]
[EventDate "2023.02.03"]
[EventType "swiss"]
[EventCountry "NET"]
[SourceTitle "playchess.com"]
[Source "ChessBase"]
[SourceQuality "1"]
[TimeControl "600+2"]

1. e4 {[%emt 0:00:08]} c5 {[%emt 0:00:11]} 2. Nf3 {[%emt 0:00:19]} Nc6 {[%emt 0:00:02]} 3. Bb5 {[%emt 0:00:05]} e6 {[%emt 0:00:03]} 4. O-O {[%emt 0:00:05]} Nge7 {[%emt 0:00:06]} 5. Re1 {[%emt 0:00:03]} b6 {[%emt 0:00:01]} 6. c3 {[%emt 0:00:21]} a6 {[%emt 0:00:03]} 7. Bf1 {[%emt 0:00:02]} d5 {[%emt 0:00:01]} 8. e5 {[%emt 0:00:20]} d4 {[%emt 0:00:03]} 9. d3 {[%emt 0:00:00]} Bb7 {[%emt 0:00:20]} 10. g3 {[%emt 0:00:18]} Ng6 {[%emt 0:00:28]} 11. Bg2 {[%emt 0:00:04]} Be7 {[%emt 0:00:51]} 12. h4 {[%emt 0:00:15]} h5 {[%emt 0:00:03]} 13. Bg5 {[%emt 0:00:43]} Qd7 {[%emt 0:00:40]} 14. Bxe7 {[%emt 0:00:15]} Ngxe7 {[%emt 0:01:02]} 15. Nbd2 {[%emt 0:00:03]} *

[Event "CCT Airthings Masters Play-In 2023"]
[Site "Online"]
[Date "2023.02.03"]
[Round "1"]
[White "Eltaj_Safarli"]
[Black "dropstoneDP"]
[Result "*"]
[ECO "C47"]
[WhiteElo "2339"]
[BlackElo "2586"]
[Annotator "TA"]
[PlyCount "39"]
[EventDate "2023.02.03"]
[EventType "swiss"]
[EventCountry "NET"]
[SourceTitle "playchess.com"]
[Source "ChessBase"]
[SourceQuality "1"]
[TimeControl "600+2"]

{[%evp 17,39,0,12,0,0,1,21,0,0,0,0,0,-9,-5,14,13,22,21,25,22,25,11,27,17]} 1. e4 {[%emt 0:00:05]} e5 {[%emt 0:00:31]} 2. Nf3 {[%emt 0:00:03]} Nf6 {[%emt 0:00:05]} 3. Nc3 {[%emt 0:00:34]} Nc6 {[%emt 0:00:05]} 4. d4 {[%emt 0:00:00]} exd4 {[%emt 0:00:02]} 5. Nxd4 {[%emt 0:00:01]} Bb4 {[%emt 0:00:01]} 6. Nxc6 {[%emt 0:00:00]} bxc6 {[%emt 0:00:00]} 7. Bd3 {[%emt 0:00:01]} d5 {[%emt 0:00:19]} 8. exd5 {[%emt 0:00:00]} O-O {[%emt 0:00:03]} 9. O-O {[%emt 0:00:02]} cxd5 {[%emt 0:00:00]} 10. h3 {[%emt 0:00:05] C47: Scotch Four Knights and Four Knights with 4 g3.} Be6 {[%emt 0:00:33]} 11. Qf3 {[%emt 0:00:15]} c5 {[%emt 0:00:05]} 12. Bg5 {[%emt 0:00:02] The position is equal.} h6 {[%emt 0:00:35]} 13. Bh4 {[%emt 0:00:15]} c4 {[%emt 0:00:34]} 14. Bf5 {[%emt 0:00:08]} Bxc3 {[%emt 0:00:37]} 15. bxc3 {[%emt 0:00:01]} Bxf5 {[%emt 0:00:09]} 16. Qxf5 {[%emt 0:00:00]} Qc8 {[%emt 0:00:01]} 17. Qxc8 {[%emt 0:01:03]} Rfxc8 {[%emt 0:00:00] [#]} 18. Bxf6 $146 {[%emt 0:00:09]} ({Predecessor:} 18. f3 Nh5 19. Bf2 Nf4 20. Rfe1 Rab8 21. Bxa7 Rb2 22. Be3 g5 23. Bxf4 gxf4 24. Re2 {½-½ Burg,T (2495)-Shirov,A (2679) Bundesliga 1617 2016 (8.4)}) 18... gxf6 {[%emt 0:00:00]} 19. Rab1 {[%emt 0:00:17]} Rab8 {[%emt 0:00:31]} 20. Rfd1 {[%emt 0:00:05] A rather calm draw.   Weighted Error Value: White=0.07 (flawless) /Black=0.07 (flawless)} *

[Event "CCT Airthings Masters Play-In 2023"]
[Site "Online"]
[Date "2023.02.03"]
[Round "1"]
[White "chessdjw"]
[Black "TimofeevAr"]
[Result "*"]
[ECO "D30"]
[WhiteElo "2255"]
[BlackElo "2576"]
[Annotator "TA"]
[PlyCount "29"]
[EventDate "2023.02.03"]
[EventType "swiss"]
[EventCountry "NET"]
[SourceTitle "playchess.com"]
[Source "ChessBase"]
[SourceQuality "1"]
[TimeControl "600+2"]

{[%evp 12,29,0,-12,-2,-23,23,10,10,7,10,10,10,10,0,0,0,-6,25,3]} 1. d4 {[%emt 0:00:05]} d5 {[%emt 0:00:06][%cal Bd7d5,Bd5c4][%mdl 32]} 2. c4 {[%emt 0:00:02]} e6 {[%emt 0:00:01]} 3. Nf3 {[%emt 0:00:02]} c6 {[%emt 0:00:04]} 4. g3 {[%emt 0:00:09]} dxc4 {[%emt 0:00:02]} 5. Bg2 {[%emt 0:00:00]} b5 {[%emt 0:00:02]} 6. O-O {[%emt 0:00:01]} Bb7 {[%emt 0:00:01]} 7. a4 {[%emt 0:00:25]} Nd7 {[%emt 0:00:05] 7...Nf6 might become the main line. D30: Queen's Gambit Declined: Systems without Nc3.} 8. b3 {[%emt 0:00:09]} (8. Nc3 $5 {[%cal Ra4b5]}) 8... Ngf6 $5 {[%emt 0:00:15][%mdl 4] Leaves trodden paths.} (8... cxb3 {deserves consideration.} 9. Nbd2 b4) 9. bxc4 {[%emt 0:00:23]} bxc4 {[%emt 0:00:02] The position is equal.} 10. Na3 {[%emt 0:00:04][%cal Bb1a3,Ba3c4,Bc4e3][%mdl 32]} c5 {[%emt 0:00:35]} (10... c3 {seems wilder.} 11. Qb3 Ba6 12. Bg5 Bxe2 13. Rfc1 Qb6) 11. Nxc4 {[%emt 0:00:06]} Be7 {[%emt 0:00:04] [#]} 12. Bf4 $146 {[%emt 0:01:01]} ({Predecessor:} 12. Bd2 Bd5 13. Ba5 Qc8 14. Ne3 Be4 15. Rc1 Qa6 {½-½ De Schampheleire,G (2313)-Luminet,D (2175) Geraardsbergen op 2013 (6)}) 12... O-O {[%emt 0:00:08]} 13. Rc1 {[%emt 0:00:06]} Bd5 {[%emt 0:00:37]} 14. Re1 {[%emt 0:01:36]} Nb6 {[%emt 0:00:30]} 15. Ne3 {[%emt 0:00:44] An uneventful encounter.   Weighted Error Value: White=0.07 (flawless) /Black=0.12 (very precise)} *

[Event "CCT Airthings Masters Play-In 2023"]
[Site "Online"]
[Date "2023.02.03"]
[Round "1"]
[White "CheckBits"]
[Black "igorkovalenko"]
[Result "*"]
[ECO "B22"]
[WhiteElo "2147"]
[BlackElo "2573"]
[Annotator "TA"]
[PlyCount "40"]
[EventDate "2023.02.03"]
[EventType "swiss"]
[EventCountry "NET"]
[SourceTitle "playchess.com"]
[Source "ChessBase"]
[SourceQuality "1"]
[TimeControl "600+2"]

{[%evp 12,40,-13,-9,-11,-8,-13,-20,0,0,0,-19,17,0,16,0,0,-8,0,0,0,-10,-9,-15,38,-10,-14,-14,9,13,5]} 1. e4 {[%emt 0:00:05]} c5 {[%emt 0:00:19]} 2. Nf3 {[%emt 0:00:04]} e6 {[%emt 0:00:01]} 3. c3 {[%emt 0:00:02]} d5 {[%emt 0:00:03]} 4. exd5 {[%emt 0:00:05]} Qxd5 {[%emt 0:00:02]} 5. d4 {[%emt 0:00:03]} Nf6 {[%emt 0:00:00]} 6. Nbd2 {[%emt 0:00:05]} cxd4 {[%emt 0:00:03]} 7. Bc4 {[%emt 0:00:04]} Qh5 {[%emt 0:00:10] B22: Sicilian: 2 c3.} 8. cxd4 {[%emt 0:00:03]} Nc6 {[%emt 0:00:04]} 9. O-O {[%emt 0:00:03]} Bd6 {[%emt 0:00:01][%cal Oc6d4]} 10. h3 {[%emt 0:00:11]} O-O {[%emt 0:00:02]} 11. Be2 {[%emt 0:00:14][%cal Of3e5] [#]} Qf5 $146 {[%emt 0:00:18]} ({Predecessor:} 11... Qd5 12. Bc4 Qa5 13. Nb3 Qc7 14. Be3 Nb4 15. Qe2 b6 16. a3 Nbd5 17. Rac1 Qd8 {½-½ Tokhirjanova,H (2126)-Assaubayeva,B (1891) Asian Continental op (Women) 13th 2014 (9)}) 12. Nc4 {[%emt 0:00:05]} Bc7 {[%emt 0:00:04]} 13. Ne3 {[%emt 0:00:19]} Qh5 {[%emt 0:00:17]} 14. Qb3 {[%emt 0:02:11]} Rd8 {[%emt 0:00:07]} 15. Rd1 {[%emt 0:00:03]} Rb8 {[%emt 0:00:22]} 16. Bd2 {[%emt 0:00:04]} Bd7 {[%emt 0:00:12]} 17. Rac1 {[%emt 0:00:08]} Bb6 {[%emt 0:00:02]} (17... Be8 $11) 18. Bc3 {[%emt 0:00:18]} (18. Nc4 $14 {was preferrable.}) 18... Be8 {[%emt 0:00:10] The position is equal.} 19. Nc4 {[%emt 0:00:23]} Nd5 {[%emt 0:00:08]} 20. Nxb6 {[%emt 0:00:18]} axb6 {[%emt 0:00:00] A rather calm draw.   Weighted Error Value: White=0.08 (flawless) /Black=0.13 (very precise)} *

[Event "CCT Airthings Masters Play-In 2023"]
[Site "Online"]
[Date "2023.02.03"]
[Round "1"]
[White "Ginger_GM"]
[Black "spicycaterpillar"]
[Result "*"]
[ECO "D00"]
[WhiteElo "2110"]
[BlackElo "2572"]
[Annotator "TA"]
[PlyCount "23"]
[EventDate "2023.02.03"]
[EventType "swiss"]
[EventCountry "NET"]
[SourceTitle "playchess.com"]
[Source "ChessBase"]
[SourceQuality "1"]
[TimeControl "600+2"]

{[%evp 9,23,-23,-25,-39,16,16,20,18,32,0,50,51,58,50,83,78]} 1. d4 {[%emt 0:00:05]} Nf6 {[%emt 0:00:06]} 2. Nc3 {[%emt 0:00:07]} d5 {[%emt 0:00:15]} 3. Bf4 {[%emt 0:00:02]} a6 {[%emt 0:00:04]} 4. e3 {[%emt 0:00:06]} e6 {[%emt 0:00:03]} 5. h4 {[%emt 0:00:04]} c5 {[%emt 0:00:15]} 6. g4 {[%emt 0:00:04][%cal Bg2g4,Bg4g5][%mdl 32] D00: 1 d4 d5: Unusual lines.} Nc6 {[%emt 0:00:08]} (6... Qb6 $15) 7. g5 $11 {[%emt 0:00:02]} Nd7 {[%emt 0:00:02]} 8. Nf3 {[%emt 0:00:03] The position is equal.} b5 {[%emt 0:00:13] [#]} 9. h5 $146 {[%emt 0:00:07]} ({Predecessor:} 9. Ne2 Nb6 10. c3 Bd6 11. h5 Bb7 12. Bh3 Qe7 13. Bxd6 Qxd6 14. dxc5 Qxc5 15. g6 hxg6 16. hxg6 {1-0 Carlsen,M (2876)-Grandelius,N (2691) Chess24 Banter Blitz Cup 2019 (5.10)}) 9... b4 {[%emt 0:00:55]} ({Black should try} 9... cxd4 $11 10. exd4 (10. Nxd4 Bb7 $11) 10... h6) 10. Na4 $14 {[%emt 0:00:35]} c4 {[%emt 0:00:34]} 11. b3 {[%emt 0:00:30]} c3 {[%emt 0:01:21]} 12. Bd3 {[%emt 0:00:56] White took control after the opening.   Weighted Error Value: White=0.08 (flawless) /Black=0.22 (precise)} *

[Event "CCT Airthings Masters Play-In 2023"]
[Site "Online"]
[Date "2023.02.03"]
[Round "1"]
[White "Mastroskaki"]
[Black "Perez Ponsa, Federico"]
[Result "*"]
[ECO "E90"]
[WhiteElo "2088"]
[BlackElo "2532"]
[Annotator "TA"]
[PlyCount "41"]
[EventDate "2023.02.03"]
[EventType "swiss"]
[EventCountry "NET"]
[SourceTitle "playchess.com"]
[Source "ChessBase"]
[SourceQuality "1"]
[TimeControl "600+2"]

{[%evp 11,41,27,34,19,33,25,43,33,32,22,39,14,13,0,8,8,0,18,0,14,60,0,0,0,0,0,0,0,43,30,83,83]} 1. d4 {[%emt 0:00:06]} Nf6 {[%emt 0:00:15]} 2. c4 {[%emt 0:00:02]} g6 {[%emt 0:00:04]} 3. Nc3 {[%emt 0:00:02]} Bg7 {[%emt 0:00:03]} 4. e4 {[%emt 0:00:01]} d6 {[%emt 0:00:00]} 5. Nf3 {[%emt 0:00:01]} O-O {[%emt 0:00:01]} 6. Bd3 {[%emt 0:00:02]} Nc6 {[%emt 0:00:12]} 7. d5 {[%emt 0:00:25] is now more promising than 7.0-0. E90: King's Indian: Classical: Early deviations and 6 h3.} Nb4 {[%emt 0:00:13]} 8. Be2 {[%emt 0:00:15]} a5 {[%emt 0:00:03]} 9. a3 {[%emt 0:00:03] White is slightly better.} Na6 {[%emt 0:00:02] [#]} 10. Be3 $146 {[%emt 0:00:18]} ({Predecessor:} 10. O-O Nc5 11. Qc2 Ng4 12. h3 Nf6 13. Be3 Ncd7 14. Rab1 e5 15. b4 b6 16. Nd2 {0-1 Parreno Cueto,A (1829)-Camarero Izquierdo,J (1950) Collado Villalba op-B 26th 2009 (3)}) 10... e6 {[%emt 0:00:35]} 11. h3 {[%emt 0:00:16]} Re8 {[%emt 0:00:10]} 12. Nd2 {[%emt 0:00:14]} exd5 {[%emt 0:00:13]} 13. cxd5 {[%emt 0:00:00]} Nc5 {[%emt 0:00:18]} 14. Bxc5 {[%emt 0:00:34]} dxc5 {[%emt 0:00:02]} 15. O-O {[%emt 0:00:00]} b6 {[%emt 0:00:06]} (15... c6 $11) 16. Bb5 {[%emt 0:00:05]} ({Better is} 16. f4 $14) 16... Bd7 $11 {[%emt 0:00:05]} 17. a4 {[%emt 0:00:18]} Bxb5 {[%emt 0:00:15]} 18. axb5 {[%emt 0:00:00]} Nh5 {[%emt 0:00:06]} 19. Re1 {[%emt 0:00:37]} Nf4 {[%emt 0:00:42] [#] White must now prevent ...Qg5.} 20. Qf3 {[%emt 0:00:11]} (20. Nc4 $5 {[%cal Re4e5]}) 20... Qg5 {[%emt 0:00:11]} (20... g5 $11) 21. Nc4 {[%emt 0:00:05] Weighted Error Value: White=0.12 (very precise) /Black=0.14 (very precise)} *

[Event "CCT Airthings Masters Play-In 2023"]
[Site "Online"]
[Date "2023.02.03"]
[Round "1"]
[White "Cueva Jumbo, Eduardo"]
[Black "Byniolus"]
[Result "*"]
[ECO "D11"]
[WhiteElo "1954"]
[BlackElo "2238"]
[Annotator "TA"]
[PlyCount "31"]
[EventDate "2023.02.03"]
[EventType "swiss"]
[EventCountry "NET"]
[SourceTitle "playchess.com"]
[Source "ChessBase"]
[SourceQuality "1"]
[TimeControl "600+2"]

{[%evp 9,31,16,21,19,16,11,23,17,22,24,14,0,12,0,23,37,25,25,37,29,44,30,16,15]} 1. c4 {[%emt 0:00:06]} c6 {[%emt 0:00:05]} 2. d4 {[%emt 0:00:03]} d5 {[%emt 0:00:01]} 3. Nf3 {[%emt 0:00:00]} Nf6 {[%emt 0:00:01]} 4. Qc2 {[%emt 0:00:01]} g6 {[%emt 0:00:43]} 5. e3 {[%emt 0:00:02]} Bg7 {[%emt 0:00:03]} 6. Be2 {[%emt 0:00:01] D11: Slav Defence: 3 Nf3 sidelines and 3...Nf6 4 e3 Bg4.} O-O {[%emt 0:00:01]} 7. O-O {[%emt 0:00:01]} Bf5 {[%emt 0:00:03]} 8. Qb3 {[%emt 0:00:01] White has an edge.} Qb6 {[%emt 0:00:01]} 9. Nc3 {[%emt 0:00:18]} Nbd7 {[%emt 0:00:23]} 10. Bd2 {[%emt 0:00:26][%cal Rc4d5] [#]} Rfc8 $146 {[%emt 0:00:12]} ({Predecessor:} 10... e6 11. Rfc1 h6 12. Nh4 Rfc8 13. Be1 Bf8 14. h3 h5 15. Nxf5 gxf5 16. Qd1 h4 {0-1 Gharibyan,M (2401)-Murzin,V (2586) Wch Blitz Almaty 2022 (11)}) 11. Rfc1 {[%emt 0:00:08][%cal Rc4d5]} h6 {[%emt 0:00:03]} 12. cxd5 {[%emt 0:01:51]} Qxb3 {[%emt 0:00:37]} 13. axb3 {[%emt 0:00:00] aiming for dxc6.} cxd5 {[%emt 0:00:01]} 14. Ra5 {[%emt 0:00:02]} e6 {[%emt 0:01:20]} 15. Rca1 {[%emt 0:00:04]} a6 {[%emt 0:00:06]} 16. b4 {[%emt 0:00:04] Weighted Error Value: White=0.05 (flawless) /Black=0.06 (flawless)} *

[Event "CCT Airthings Masters Play-In 2023"]
[Site "Online"]
[Date "2023.02.03"]
[Round "1"]
[White "Chan, Chak Man"]
[Black "gmjlh"]
[Result "*"]
[ECO "D02"]
[WhiteElo "1862"]
[BlackElo "2508"]
[Annotator "TA"]
[PlyCount "28"]
[EventDate "2023.02.03"]
[EventType "swiss"]
[EventCountry "NET"]
[SourceTitle "playchess.com"]
[Source "ChessBase"]
[SourceQuality "1"]
[TimeControl "600+2"]

{[%evp 10,28,8,6,10,0,0,0,4,0,6,-3,30,18,20,26,21,26,30,15,18]} 1. d4 {[%emt 0:00:20]} Nf6 {[%emt 0:00:05]} 2. Bf4 {[%emt 0:00:04]} d5 {[%emt 0:00:03]} 3. e3 {[%emt 0:00:03]} e6 {[%emt 0:00:01]} 4. Nf3 {[%emt 0:00:04]} Bd6 {[%emt 0:00:01]} 5. Nbd2 {[%emt 0:00:02]} Bxf4 {[%emt 0:00:08]} 6. exf4 {[%emt 0:00:01]} O-O {[%emt 0:00:01] D02: 1 d4 d5 2 Nf3 sidelines, including 2...Nf6 3 g3 and 2...Nf6 3 Bf4.} 7. Bd3 {[%emt 0:00:04]} b6 {[%emt 0:00:02]} 8. O-O {[%emt 0:00:20]} c5 {[%emt 0:00:05]} 9. Re1 {[%emt 0:00:11]} Ba6 {[%emt 0:00:03]} 10. Ne5 {[%emt 0:01:05] [#]} g6 $146 {[%emt 0:00:42]} ({Predecessor:} 10... Bxd3 11. cxd3 Nfd7 12. Rc1 Nxe5 13. fxe5 Nc6 14. dxc5 bxc5 15. Nb3 c4 16. dxc4 dxc4 17. Rxc4 Nxe5 {½-½ Petrosyan,M (2610)-Anton Guijarro,D (2667) Olympiad-44 Chennai 2022 (11.3)}) 11. Rc1 {[%emt 0:00:16]} Nfd7 {[%emt 0:00:51]} 12. Ndf3 {[%emt 0:00:47]} Nxe5 {[%emt 0:00:15]} 13. Nxe5 {[%emt 0:00:02]} c4 {[%emt 0:01:16]} 14. Bf1 {[%emt 0:00:04]} c3 {[%emt 0:00:01] An uneventful encounter.   Weighted Error Value: White=0.07 (flawless) /Black=0.04 (flawless)} *